fUSD/lending_fUSD_20241011
["ID","MTS","AMOUNT","RATE_DAILY","PERIOD"]
[340124359,1728643832646,-2183.4553,0.000108,2]
[340124360,1728643832656,-297.9512,0.000108,2]
[340124361,1728643832665,-429.1034,0.000108,2]
[340124362,1728643832675,-1504.14,0.000108,2]
[340124363,1728643832684,-2500.0,0.000108,2]
[340124364,1728643832693,-255.46,0.000108,2]
[340124365,1728643832703,-428.39,0.000108,2]
[340124366,1728643832713,-150.0,0.000108,2]
[340124367,1728643832722,-755.56,0.000108,2]
[340124368,1728643832732,-150.0,0.000108,2]
[340124369,1728643832743,-150.0,0.000108,2]
[340124370,1728643832752,-301.48,0.000108,2]
[340124371,1728643832761,-298.74221459,0.000108,2]
[340124372,1728643832791,-130.69778541,0.000108,2]
[340124373,1728643832800,-359.09,0.000108,2]
[340124374,1728643832813,-755.56,0.000108,2]
[340124375,1728643832823,-423.99,0.000108,2]
[340124376,1728643832832,-1916.77488459,0.000108,2]
[340124377,1728643832846,-1415.43626018,0.000108,2]
[340124378,1728643832865,-4167.78885523,0.000108,2]
[340124379,1728643832875,-152.0,0.000108,2]
[340124380,1728643832886,-150.95306183,0.00010873,2]
[340124381,1728643832895,-154.95293314,0.00010873,2]
[340124382,1728643832904,-150.65306892,0.00010873,2]
[340124383,1728643832913,-500.0,0.00010873,2]
[340124384,1728643832922,-150.0,0.0001089,2]
[340124385,1728643832931,-167.44377,0.0001089,2]
[340124386,1728643832941,-161026.68607002,0.000109,2]
[340124387,1728643838525,-500.0,0.00010873,2]
[340124388,1728643838535,-1285.41761434,0.000109,2]
[340124389,1728643838569,-791.23703678,0.000109,2]
[340124414,1728643840509,-1224.49321259,0.000109,2]
[340124459,1728643843285,-80672.16606627,0.000109,2]
[340124460,1728643843295,-100000.0,0.000109,2]
[340124461,1728643843305,-6504.2533,0.000109,2]
[340124462,1728643843316,-500.0,0.000109,2]
[340124463,1728643843325,-262.2927,0.000109,2]
[340124464,1728643843336,-4860.7578,0.000109,2]
[340124465,1728643843346,-722.19,0.000109,2]
[340124466,1728643843357,-305.77,0.000109,2]
[340124467,1728643843367,-846.75,0.000109,2]
[340124468,1728643843376,-755.4,0.000109,2]
[340124469,1728643843385,-533.49,0.000109,2]
[340124470,1728643843395,-303.76,0.000109,2]
[340124471,1728643843404,-305.99,0.000109,2]
[340124472,1728643843413,-358.92,0.000109,2]
[340124473,1728643843422,-301.22,0.000109,2]
[340124474,1728643843431,-300.0,0.000109,2]
[340124475,1728643843441,-429.25,0.000109,2]
[340124476,1728643843450,-428.15,0.000109,2]
[340124477,1728643843460,-359.09,0.000109,2]
[340124478,1728643843469,-421.6,0.000109,2]
[340124479,1728643843478,-755.56,0.000109,2]
[340124480,1728643843487,-429.25,0.000109,2]
[340124481,1728643843496,-150.0,0.000109,2]
[340124482,1728643843506,-423.89,0.000109,2]
[340124483,1728643843515,-429.44,0.000109,2]
[340124484,1728643843525,-421.81,0.000109,2]
[340124485,1728643843535,-755.56,0.000109,2]
[340124486,1728643843545,-423.99,0.000109,2]
[340124487,1728643843554,-755.56,0.000109,2]
[340124488,1728643843564,-423.99,0.000109,2]
[340124489,1728643843573,-161.0835701,0.000109,2]
[340124490,1728643843583,-423.99,0.000109,2]
[340124491,1728643843592,-755.56,0.000109,2]
[340124492,1728643843602,-423.99,0.000109,2]
[340124493,1728643843611,-429.44,0.000109,2]
[340124494,1728643843621,-755.56,0.000109,2]
[340124495,1728643843631,-401.55,0.000109,2]
[340124496,1728643843640,-624.56,0.000109,2]
[340124497,1728643843650,-150.0,0.000109,2]
[340124498,1728643843659,-150.0,0.000109,2]
[340124499,1728643843669,-150.0,0.000109,2]
[340124500,1728643843679,-303.76,0.000109,2]
[340124501,1728643843688,-359.09,0.000109,2]
[340124502,1728643843697,-755.4,0.000109,2]
[340124503,1728643843707,-303.4,0.000109,2]
[340124504,1728643843716,-967.22,0.000109,2]
[340124505,1728643843725,-155.78,0.00010959,2]
[340124506,1728643843735,-250.0,0.00010959,2]
[340124507,1728643843744,-408.61,0.00010959,2]
[340124508,1728643843754,-7285.03,0.00010959,2]
[340124509,1728643843763,-311.171,0.00010963,2]
[340124510,1728643843773,-208.52,0.00010963,2]
[340124511,1728643843783,-278.439,0.00010963,2]
[340124512,1728643843792,-935.0,0.00010963,2]
[340124513,1728643843801,-559.0,0.00010963,2]
[340124514,1728643843811,-1907.0,0.00010963,2]
[340124515,1728643843823,-555.0,0.00010963,2]
[340124516,1728643843833,-3355.0,0.00010963,2]
[340124517,1728643843842,-808.0,0.00010963,2]
[340124518,1728643843851,-1909.0,0.00010963,2]
[340124519,1728643843860,-6114.925,0.00010963,2]
[340124520,1728643843871,-1734.847,0.00010963,2]
[340124521,1728643843880,-150.0,0.00010963,2]
[340124522,1728643843889,-150.0,0.00010963,2]
[340124523,1728643843898,-150.0,0.00010963,2]
[340124524,1728643843907,-500.0,0.00010973,2]
[340124525,1728643843916,-175.304972,0.00010986,2]
[340124526,1728643843927,-186.67744969,0.0001099,2]
[340124527,1728643843936,-164.20012873,0.00010997,2]
[340124528,1728643843945,-969.14766902,0.00010999,2]
[340124529,1728643843954,-150.0,0.00010999,2]
[340124530,1728643843973,-379.39339153,0.00010999,2]
[340124531,1728643843982,-5293.97045317,0.00011,2]
[340124532,1728643843998,-71050.76400213,0.00011,2]
[340124533,1728643844007,-76050.03664094,0.00011,2]
[340124534,1728643844016,-203.0,0.00011,2]
[340124535,1728643844025,-203.0,0.00011,2]
[340124536,1728643844035,-203.0,0.00011,2]
[340124537,1728643844044,-203.0,0.00011,2]
[340124538,1728643844053,-203.0,0.00011,2]
[340124539,1728643844062,-203.0,0.00011,2]
[340124540,1728643844071,-203.0,0.00011,2]
[340124541,1728643844080,-203.0,0.00011,2]
[340124542,1728643844092,-203.0,0.00011,2]
[340124543,1728643844106,-203.0,0.00011,2]
[340124544,1728643844118,-203.0,0.00011,2]
[340124545,1728643844131,-203.0,0.00011,2]
[340124546,1728643844143,-203.0,0.00011,2]
[340124547,1728643844155,-203.0,0.00011,2]
[340124548,1728643844167,-500.0,0.00011,2]
[340124549,1728643844179,-59327.26651848,0.00011,2]
[340124552,1728643968636,250.0,0.00010202,2]
[340124553,1728644000684,-6221.26162616,0.0001059,2]
[340124554,1728644000704,-567.99,0.00010684,2]
[340124555,1728644000725,-1658.5827,0.0001069,2]
[340124556,1728644000746,-1057.349,0.0001069,2]
[340124557,1728644000769,-175.304972,0.00010718,2]
[340124558,1728644000792,-2500.0,0.000108,2]
[340124559,1728644000814,-413.4987,0.000108,2]
[340124560,1728644000835,-7500.0,0.000108,2]
[340124561,1728644000858,-181.47,0.00010893,2]
[340124562,1728644000880,-901.69568811,0.000109,2]
[340124563,1728644000903,-12822.84731373,0.000109,2]
[340124564,1728644099301,212.62336984,0.00010846,30]
[340124565,1728644109707,208.63,8.451e-05,2]
[340124566,1728644127929,11467.0,0.000124,5]
[340124567,1728644216997,6131.0,0.00012,5]
[340124568,1728644473721,250.0,0.00010182,2]
[340124569,1728644684973,198.19,8.296e-05,2]
[340124570,1728644744898,250.0,0.00010158,2]
[340124571,1728644855381,930.28,0.00010185,2]
[340124572,1728644876270,550.0,0.0001,2]
[340124573,1728644922794,283.99,0.00010187,2]
[340124574,1728644924466,550.0,0.0001,2]
[340124584,1728645031416,-250.0,0.0001027,2]
[340124585,1728645031426,-1000.0,0.00010495,2]
[340124586,1728645031435,-198.19,0.0001056,2]
[340124587,1728645031444,-150.0,0.00010799,2]
[340124588,1728645031455,-94313.34784637,0.000108,2]
[340124589,1728645031565,-250.0,0.000108,2]
[340124594,1728645037847,-5436.65215363,0.000108,2]
[340124595,1728645037862,-588.9124,0.000108,2]
[340124596,1728645037871,-2122.6584,0.000108,2]
[340124597,1728645037881,-6504.2533,0.000108,2]
[340124598,1728645037891,-4860.7578,0.000108,2]
[340124599,1728645037900,-1734.847,0.00010894,2]
[340124600,1728645037909,-150.0,0.00010894,2]
[340124601,1728645037918,-6114.925,0.00010894,2]
[340124602,1728645037928,-811.52611929,0.00010899,2]
[340124603,1728645037937,-232177.15268627,0.000109,2]
[340124604,1728645037947,-500.0,0.000109,2]
[340124605,1728645037956,-262.2927,0.000109,2]
[340124606,1728645037966,-200.03603232,0.000109,2]
[340124607,1728645037976,-7428.4,0.000109,2]
[340124608,1728645037985,-204.31,0.00010959,2]
[340124609,1728645037995,-150.85,0.00010959,2]
[340124610,1728645038004,-326.88,0.00010959,2]
[340124611,1728645038013,-1895.27723319,0.00010959,2]
[340124619,1728645039668,-284.66499986,0.00010959,2]
[340124620,1728645039719,-250.0,0.00010959,2]
[340124644,1728645042475,-96.47776695,0.00010959,2]
[340124646,1728645042484,-235.49223305,0.00010959,2]
[340124649,1728645042698,-302.38018388,0.00010959,2]
[340124650,1728645042711,-462.11758307,0.00010959,2]
[340124651,1728645042720,-499.99,0.00010959,2]
[340124652,1728645042731,-156.03,0.00010959,2]
[340124653,1728645042742,-7285.03,0.00010959,2]
[340124654,1728645042753,-250.0,0.00010959,2]
[340124655,1728645042764,-150.0,0.00010963,2]
[340124656,1728645042775,-311.171,0.00010963,2]
[340124657,1728645042786,-278.439,0.00010963,2]
[340124658,1728645042795,-559.0,0.00010963,2]
[340124659,1728645042804,-208.52,0.00010963,2]
[340124660,1728645042813,-935.0,0.00010963,2]
[340124661,1728645042825,-1907.0,0.00010963,2]
[340124662,1728645042834,-3355.0,0.00010963,2]
[340124663,1728645042843,-555.0,0.00010963,2]
[340124664,1728645042853,-808.0,0.00010963,2]
[340124665,1728645042863,-1909.0,0.00010963,2]
[340124666,1728645042872,-500.0,0.00010973,2]
[340124667,1728645042882,-2099.04,0.00010973,2]
[340124668,1728645042892,-150.99,0.00010973,2]
[340124669,1728645042901,-368.38500727,0.00010973,2]
[340124670,1728645042910,-500.0,0.00010973,2]
[340124671,1728645042920,-177.66837526,0.0001099,2]
[340124672,1728645042929,-164.20012873,0.00010997,2]
[340124673,1728645042939,-1744.46580423,0.00010999,2]
[340124674,1728645042948,-150.0,0.00010999,2]
[340124675,1728645042957,-74239.65805508,0.00011,2]
[340124676,1728645042968,-15041.0,0.00011,2]
[340124677,1728645042978,-131534.01454687,0.00011,2]
[340124682,1728645045918,-931.24119877,0.00011,2]
[340124687,1728645550174,218.7,9.069e-05,2]
[340124690,1728645954674,205.45612644,6.94e-05,2]
[340124692,1728646045776,207.76,8.219e-05,2]
[340124693,1728646068253,283.99,0.00010065,2]
[340124694,1728646090501,250.0,0.00010065,2]
[340124695,1728646102676,22150.52704779,0.00012,30]
[340124715,1728646237706,-1000.0,0.00010391,2]
[340124716,1728646237715,-207.76,0.0001048,2]
[340124717,1728646237725,-150.0,0.00010799,2]
[340124718,1728646237735,-21143.52476895,0.000108,2]
[340124719,1728646237911,-24559.57031548,0.000108,2]
[340124720,1728646238041,-56899.23741557,0.000108,2]
[340124721,1728646238051,-3311.95,0.00010873,2]
[340124722,1728646238060,-30729.88373447,0.0001088,2]
[340124729,1728646239781,-281.3614,0.0001088,2]
[340124730,1728646240176,-6696.56395008,0.0001088,2]
[340124731,1728646240609,-3630.64321763,0.0001088,2]
[340124732,1728646240638,-1397.98740714,0.0001088,2]
[340124733,1728646240649,-1953.01259286,0.0001088,2]
[340124740,1728646242672,-1205.50888672,0.0001088,2]
[340124741,1728646242683,-335.4,0.0001088,2]
[340124742,1728646242694,-262.36485801,0.0001088,2]
[340124743,1728646242705,-303.62606581,0.0001088,2]
[340124744,1728646242716,-2449.578338,0.0001088,2]
[340124745,1728646242731,-7024.1264637,0.0001088,2]
[340124746,1728646242935,-436.11645106,0.0001088,2]
[340124747,1728646242946,-43486.61292059,0.0001088,2]
[340124748,1728646242956,-205.22593,0.0001089,2]
[340124749,1728646242965,-730.37350737,0.00010899,2]
[340124750,1728646242974,-2357.80715962,0.000109,2]
[340124751,1728646242984,-33200.0,0.000109,2]
[340124752,1728646242993,-152.4326486,0.000109,2]
[340124753,1728646243002,-3595.8058,0.000109,2]
[340124754,1728646243011,-4525.67894571,0.000109,2]
[340124755,1728646243020,-181.87747034,0.000109,2]
[340124756,1728646243030,-222.72667164,0.000109,2]
[340124757,1728646243039,-1137.34687138,0.000109,2]
[340124758,1728646243049,-158.68,0.00010959,2]
[340124759,1728646243058,-261.5,0.00010959,2]
[340124760,1728646243068,-7285.03,0.00010959,2]
[340124761,1728646243077,-155.78,0.00010959,2]
[340124762,1728646243087,-250.0,0.00010959,2]
[340124763,1728646243096,-499.99,0.00010959,2]
[340124764,1728646243106,-150.99,0.00010959,2]
[340124765,1728646243115,-2099.04,0.00010959,2]
[340124767,1728646243125,-368.38500727,0.00010973,2]
[340124769,1728646243135,-500.0,0.00010973,2]
[340124770,1728646243145,-3355.0,0.00010975,2]
[340124772,1728646243154,-555.0,0.00010975,2]
[340124774,1728646243164,-1907.0,0.00010975,2]
[340124776,1728646243173,-808.0,0.00010975,2]
[340124795,1728646243364,-1909.0,0.00010975,2]
[340124797,1728646243381,-311.171,0.00010975,2]
[340124799,1728646243391,-935.0,0.00010975,2]
[340124801,1728646243401,-278.439,0.00010975,2]
[340124803,1728646243410,-208.52,0.00010975,2]
[340124805,1728646243420,-204.31,0.00010987,2]
[340124808,1728646243430,-177.66837526,0.0001099,2]
[340124810,1728646243440,-922.1255628,0.00010997,2]
[340124812,1728646243450,-1200.1218664,0.00010997,2]
[340124814,1728646243460,-2762.0708567,0.00010999,2]
[340124816,1728646243470,-150.0,0.00010999,2]
[340124818,1728646243479,-379.39339153,0.00010999,2]
[340124820,1728646243490,-500.0,0.00010999,2]
[340124822,1728646243499,-500.0,0.00010999,2]
[340124824,1728646243508,-500.0,0.00010999,2]
[340124826,1728646243518,-516.2053144,0.00010999,2]
[340124828,1728646243528,-248.91423634,0.00010999,2]
[340124830,1728646243537,-79239.65805508,0.00011,2]
[340124832,1728646243547,-47205.83890948,0.00011,2]
[340124834,1728646243559,-510.81800001,0.00011,2]
[340124836,1728646243571,-396.372256,0.00011,2]
[340124838,1728646243582,-683.42308022,0.00011,2]
[340124862,1728646245676,-559.0,0.00010975,2]
[340124863,1728646245686,-54023.51602687,0.00011,2]
[340124864,1728646245697,-62737.6696743,0.00011,2]
[340124865,1728646245709,-49726.49149983,0.00011,2]
[340124866,1728646245720,-37191.318,0.00011,2]
[340124867,1728646245731,-166741.233604,0.00011,2]
[340124868,1728646245744,-46509.59332179,0.00011,2]
[340124869,1728646245757,-12934.22126184,0.00011,2]
[340124872,1728646627432,186.98,8.986e-05,2]
[340124873,1728646732244,550.0,0.0001,2]
[340124875,1728647144444,177.63,8.492e-05,2]
[340124896,1728647431769,-1000.0,0.0001036,2]
[340124898,1728647431777,-250.0,0.00010372,2]
[340124900,1728647431787,-177.63,0.00010755,2]
[340124901,1728647431798,-152.43264857,0.000109,2]
[340124902,1728647431808,-657.33615666,0.000109,2]
[340124903,1728647431817,-995.17851251,0.000109,2]
[340124904,1728647431827,-250.0,0.00010959,2]
[340124905,1728647431838,-250.07,0.00010959,2]
[340124906,1728647431848,-151.14,0.00010959,2]
[340124907,1728647431857,-2766.69,0.00010959,2]
[340124908,1728647431867,-368.38500727,0.00010973,2]
[340124909,1728647431879,-500.0,0.00010973,2]
[340124910,1728647431888,-150.0,0.00010976,2]
[340124911,1728647431898,-311.171,0.00010977,2]
[340124912,1728647431908,-208.52,0.00010977,2]
[340124913,1728647431917,-935.0,0.00010977,2]
[340124914,1728647431926,-278.439,0.00010977,2]
[340124915,1728647431936,-1907.0,0.00010977,2]
[340124916,1728647431945,-3355.0,0.00010977,2]
[340124917,1728647431954,-555.0,0.00010977,2]
[340124918,1728647431965,-808.0,0.00010977,2]
[340124919,1728647431974,-1909.0,0.00010977,2]
[340124920,1728647431983,-153.0,0.00010977,2]
[340124921,1728647431992,-150.0,0.00010977,2]
[340124922,1728647432001,-150.0,0.00010977,2]
[340124923,1728647432011,-177.66837526,0.0001099,2]
[340124924,1728647432023,-620.7321198,0.00010997,2]
[340124925,1728647432036,-780.9477354,0.00010997,2]
[340124926,1728647432050,-462.12,0.00010997,2]
[340124927,1728647432063,-150.99,0.00010997,2]
[340124928,1728647432076,-600.0609332,0.00010997,2]
[340124929,1728647432086,-2762.0708567,0.00010999,2]
[340124930,1728647432099,-499.99,0.00010999,2]
[340124931,1728647432110,-150.0,0.00010999,2]
[340124932,1728647432124,-319.0432799,0.00010999,2]
[340124933,1728647432151,-224.02281271,0.00010999,2]
[340124934,1728647432165,-500.0,0.00010999,2]
[340124935,1728647432177,-588.60759567,0.00010999,2]
[340124936,1728647432191,-500.0,0.00010999,2]
[340124937,1728647432204,-500.0,0.00010999,2]
[340124938,1728647432216,-47471.5363634,0.00011,2]
[340124939,1728647432231,-633.33,0.00011,2]
[340124940,1728647432246,-2132.33218236,0.00011,2]
[340124941,1728647432260,-748.87385005,0.00011,2]
[340124942,1728647432275,-560.16569881,0.00011,2]
[340124943,1728647432314,-10896.14617546,0.00011,2]
[340124944,1728647432335,-3897.67600053,0.00011,2]
[340124945,1728647432350,-4490.59023949,0.00011,2]
[340124946,1728647432365,-4474.57092623,0.00011,2]
[340124947,1728647432382,-3934.43661875,0.00011,2]
[340124948,1728647432396,-1688.18269028,0.00011,2]
[340124949,1728647432415,-7619.85738145,0.00011,2]
[340124950,1728647432441,-2705.49053353,0.00011,2]
[340124951,1728647432467,-800.0,0.00011,2]
[340124953,1728647437858,-582.24356216,0.00011,2]
[340124954,1728647437915,-2510.72,0.00011,2]
[340124955,1728647437929,-663.2,0.00011,2]
[340124956,1728647438081,-199916.7846371,0.00011,2]
[340124957,1728647438093,-40091.85876302,0.00011,2]
[340124958,1728647438104,-202.0,0.00011,2]
[340124959,1728647438115,-202.0,0.00011,2]
[340124960,1728647438127,-202.0,0.00011,2]
[340124961,1728647438138,-202.0,0.00011,2]
[340124962,1728647438149,-202.0,0.00011,2]
[340124963,1728647438160,-202.0,0.00011,2]
[340124964,1728647438171,-202.0,0.00011,2]
[340124965,1728647438181,-202.0,0.00011,2]
[340124966,1728647438192,-500.0,0.00011,2]
[340124967,1728647438204,-476696.76986219,0.00011,2]
[340124968,1728647438215,-203.0,0.00011,2]
[340124969,1728647438226,-339.0,0.00011,2]
[340124970,1728647438237,-752.12,0.00011,2]
[340124971,1728647438247,-835268.12544573,0.00011,2]
[340124973,1728647438258,-35000.0,0.00011,2]
[340124974,1728647438270,-500.0,0.00011,2]
[340124975,1728647438281,-35000.0,0.00011,2]
[340124976,1728647438292,-35000.0,0.00011,2]
[340124977,1728647438303,-2845.2078121,0.00011004,2]
[340124978,1728647438314,-203.0,0.0001102,2]
[340124979,1728647438325,-150.6,0.000111,2]
[340124980,1728647438337,-150.0,0.000111,2]
[340124981,1728647438348,-184.451814,0.0001112,2]
[340124982,1728647438359,-209.468446,0.0001112,2]
[340124983,1728647438371,-500.0,0.00011164,2]
[340124984,1728647438383,-500.0,0.00011164,2]
[340124985,1728647438394,-152.47,0.000112,2]
[340124986,1728647438408,-150.0,0.000112,2]
[340124987,1728647438420,-572.67,0.000112,2]
[340124988,1728647438431,-847.98,0.000112,2]
[340124989,1728647438443,-1510.8,0.000112,2]
[340124990,1728647438454,-175.304972,0.00011254,2]
[340124991,1728647438465,-196.96013,0.00011254,2]
[340124992,1728647438477,-184.451814,0.00011254,2]
[340124993,1728647438488,-209.468446,0.00011254,2]
[340124994,1728647438499,-414.8285554,0.00011344,2]
[340124995,1728647438510,-800.0,0.00011387,2]
[340124996,1728647438521,-150.0,0.000114,2]
[340124997,1728647438533,-270.7,0.000114,2]
[340124998,1728647438544,-367.88,0.000114,2]
[340124999,1728647438555,-704.08,0.000114,2]
[340125000,1728647438567,-847.88,0.000114,2]
[340125001,1728647438578,-250.07,0.00011507,2]
[340125002,1728647438589,-2751.0,0.00011507,2]
[340125003,1728647438600,-500.0,0.00011507,2]
[340125004,1728647438611,-159.871968,0.00011507,2]
[340125005,1728647438623,-153.3002351,0.00011507,2]
[340125006,1728647438634,-500.0,0.00011507,2]
[340125007,1728647438645,-325.43,0.000116,2]
[340125008,1728647438655,-1000.0,0.00011655,2]
[340125009,1728647438664,-371.0,0.000118,2]
[340125010,1728647438674,-1000.0,0.000118,2]
[340125011,1728647438684,-227.0,0.000118,2]
[340125012,1728647438694,-301.8,0.000118,2]
[340125013,1728647438914,-800.0,0.00011987,2]
[340125014,1728647438937,-200.0,0.00012,2]
[340125015,1728647438949,-600.0,0.00012,2]
[340125016,1728647438959,-200.0,0.00012,2]
[340125017,1728647438969,-200.0,0.00012,2]
[340125018,1728647438979,-196.0,0.00012019,2]
[340125019,1728647438989,-314.54,0.00012033,2]
[340125020,1728647439000,-250.07,0.00012055,2]
[340125021,1728647439010,-180.0,0.00012055,2]
[340125022,1728647439021,-181.31,0.00012055,2]
[340125023,1728647439031,-150.0,0.00012078,2]
[340125024,1728647439041,-150.0,0.00012089,2]
[340125025,1728647439053,-300.0,0.00012102,2]
[340125026,1728647439064,-150.0,0.00012112,2]
[340125027,1728647439074,-150.0,0.00012115,2]
[340125028,1728647439084,-200.0,0.0001212,2]
[340125029,1728647439094,-200.0,0.0001212,2]
[340125030,1728647439104,-150.0,0.00012124,2]
[340125031,1728647439115,-150.0,0.0001214,2]
[340125032,1728647439127,-150.0,0.0001215,2]
[340125033,1728647439136,-150.0,0.00012154,2]
[340125034,1728647439146,-150.0,0.00012158,2]
[340125035,1728647439155,-150.0,0.0001217,2]
[340125036,1728647439164,-150.0,0.00012181,2]
[340125037,1728647439174,-150.0,0.00012182,2]
[340125038,1728647439183,-150.0,0.00012186,2]
[340125039,1728647439192,-150.0,0.00012189,2]
[340125040,1728647439201,-150.0,0.00012201,2]
[340125041,1728647439210,-300.0,0.00012211,2]
[340125042,1728647439219,-150.0,0.00012213,2]
[340125043,1728647439228,-150.0,0.00012213,2]
[340125044,1728647439238,-150.0,0.00012214,2]
[340125045,1728647439247,-150.0,0.00012218,2]
[340125046,1728647439257,-150.0,0.0001222,2]
[340125047,1728647439267,-200.0,0.00012241,2]
[340125048,1728647439275,-200.0,0.00012241,2]
[340125049,1728647439284,-150.0,0.00012252,2]
[340125050,1728647439294,-150.0,0.0001228,2]
[340125051,1728647439303,-150.0,0.00012283,2]
[340125052,1728647439312,-150.0,0.0001231,2]
[340125053,1728647439321,-150.0,0.00012314,2]
[340125054,1728647439332,-150.0,0.0001232,2]
[340125055,1728647439342,-300.0304666,0.00012326,2]
[340125056,1728647439352,-150.0,0.00012327,2]
[340125057,1728647439362,-600.0,0.00012329,2]
[340125058,1728647439371,-600.0,0.00012329,2]
[340125059,1728647439380,-600.0,0.00012329,2]
[340125060,1728647439390,-600.0,0.00012329,2]
[340125061,1728647439402,-600.0,0.00012329,2]
[340125062,1728647439414,-600.0,0.00012329,2]
[340125063,1728647439425,-600.0,0.00012329,2]
[340125064,1728647439434,-600.0,0.00012329,2]
[340125065,1728647439444,-600.0,0.00012329,2]
[340125066,1728647439455,-600.0,0.00012329,2]
[340125067,1728647439464,-151.0,0.00012329,2]
[340125068,1728647439475,-154.645308,0.00012329,2]
[340125069,1728647439484,-1000.0,0.00012329,2]
[340125070,1728647439493,-1000.0,0.00012329,2]
[340125071,1728647439504,-1000.0,0.00012329,2]
[340125072,1728647439516,-1000.0,0.00012329,2]
[340125073,1728647439526,-1000.0,0.00012329,2]
[340125074,1728647439535,-1000.0,0.00012329,2]
[340125075,1728647439547,-1000.0,0.00012329,2]
[340125076,1728647439559,-1000.0,0.00012329,2]
[340125077,1728647439568,-1000.0,0.00012329,2]
[340125078,1728647439577,-1000.0,0.00012329,2]
[340125079,1728647439587,-1000.0,0.00012329,2]
[340125080,1728647439596,-1000.0,0.00012329,2]
[340125081,1728647439606,-1000.0,0.00012329,2]
[340125082,1728647439615,-1000.0,0.00012329,2]
[340125083,1728647439624,-1000.0,0.00012329,2]
[340125084,1728647439635,-1000.0,0.00012329,2]
[340125085,1728647439644,-1000.0,0.00012329,2]
[340125086,1728647439654,-1000.0,0.00012329,2]
[340125087,1728647439665,-1000.0,0.00012329,2]
[340125088,1728647439674,-1000.0,0.00012329,2]
[340125089,1728647439684,-1000.0,0.00012329,2]
[340125090,1728647439693,-1000.0,0.00012329,2]
[340125091,1728647439703,-1011.0,0.00012329,2]
[340125092,1728647439712,-1000.0,0.00012329,2]
[340125093,1728647439722,-1000.0,0.00012329,2]
[340125094,1728647439731,-1000.0,0.00012329,2]
[340125095,1728647439741,-1000.0,0.00012329,2]
[340125096,1728647439750,-1000.0,0.00012329,2]
[340125097,1728647439759,-1000.0,0.00012329,2]
[340125098,1728647439769,-1000.0,0.00012329,2]
[340125099,1728647439778,-1000.0,0.00012329,2]
[340125100,1728647439788,-1000.0,0.00012329,2]
[340125101,1728647439797,-1000.0,0.00012329,2]
[340125102,1728647439806,-1000.0,0.00012329,2]
[340125103,1728647439816,-1000.0,0.00012329,2]
[340125104,1728647439826,-1000.0,0.00012329,2]
[340125105,1728647439835,-1000.0,0.00012329,2]
[340125106,1728647439846,-1000.0,0.00012329,2]
[340125107,1728647439857,-1000.0,0.00012329,2]
[340125108,1728647439866,-1000.0,0.00012329,2]
[340125109,1728647439875,-1000.0,0.00012329,2]
[340125110,1728647439885,-1000.0,0.00012329,2]
[340125111,1728647439895,-1000.0,0.00012329,2]